[Event "Titled Tuesday Blitz May 9 Late 2023"]
[White "Przybylski, Wojciech"]
[Black "Fuzesabonyilaci"]
[WhiteFideId "1117599"]
[WhiteElo "2222"]
[BlackElo "2312"]
[Result "1-0"]
[Round "04"]
[TimeControl "180+2"]
[Date "2023.05.09"]
[WhiteClock "0:00:05"]
[BlackClock "0:00:00"]

1. d4 {[%clk 0:02:59]}  d5 {[%clk 0:02:58]} 2. Nf3 {[%clk 0:02:58]}  Nf6 {[%clk 0:02:58]} 3. c4 {[%clk 0:02:57]}  dxc4 {[%clk 0:02:56]} 4. g3 {[%clk 0:02:56]}  b5 {[%clk 0:02:52]} 5. Bg2 {[%clk 0:02:56]}  Bb7 {[%clk 0:02:52]} 6. O-O {[%clk 0:02:55]}  e6 {[%clk 0:02:52]} 7. a4 {[%clk 0:02:55]}  a6 {[%clk 0:02:50]} 8. b3 {[%clk 0:02:51]}  cxb3 {[%clk 0:02:47]} 9. axb5 {[%clk 0:02:48]}  axb5 {[%clk 0:02:46]} 10. Rxa8 {[%clk 0:02:47]}  Bxa8 {[%clk 0:02:47]} 11. Qxb3 {[%clk 0:02:46]}  Qd5 {[%clk 0:02:43]} 12. Qc2 {[%clk 0:02:33]}  Qc4 {[%clk 0:02:38]} 13. Qb2 {[%clk 0:02:23]}  Qb4 {[%clk 0:02:17]} 14. Qc2 {[%clk 0:02:20]}  Bd6 {[%clk 0:02:09]} 15. Ba3 {[%clk 0:01:14]}  Qa4 {[%clk 0:01:51]} 16. Qxa4 {[%clk 0:00:55]}  bxa4 {[%clk 0:01:52]} 17. Bxd6 {[%clk 0:00:54]}  cxd6 {[%clk 0:01:53]} 18. Nc3 {[%clk 0:00:55]}  Nbd7 {[%clk 0:01:45]} 19. Nxa4 {[%clk 0:00:46]}  Bc6 {[%clk 0:01:35]} 20. Nb2 {[%clk 0:00:45]}  Ke7 {[%clk 0:01:35]} 21. Rc1 {[%clk 0:00:42]}  Bd5 {[%clk 0:01:33]} 22. Nd3 {[%clk 0:00:39]}  Rb8 {[%clk 0:01:30]} 23. h3 {[%clk 0:00:38]}  Be4 {[%clk 0:01:24]} 24. Nfe1 {[%clk 0:00:31]}  g5 {[%clk 0:01:04]} 25. f3 {[%clk 0:00:20]}  Bb7 {[%clk 0:00:32]} 26. e4 {[%clk 0:00:19]}  Rc8 {[%clk 0:00:31]} 27. Rb1 {[%clk 0:00:19]}  Ba6 {[%clk 0:00:30]} 28. Nb4 {[%clk 0:00:19]}  Bc4 {[%clk 0:00:23]} 29. Rc1 {[%clk 0:00:18]}  d5 {[%clk 0:00:22]} 30. e5 {[%clk 0:00:17]}  Ne8 {[%clk 0:00:13]} 31. Bf1 {[%clk 0:00:17]}  Ba6 {[%clk 0:00:12]} 32. Nc6+ {[%clk 0:00:13]}  Kf8 {[%clk 0:00:07]} 33. Bxa6 {[%clk 0:00:12]}  Ra8 {[%clk 0:00:07]} 34. Bf1 {[%clk 0:00:11]}  Ra3 {[%clk 0:00:07]} 35. Nb4 {[%clk 0:00:10]}  Nb6 {[%clk 0:00:05]} 36. Rc6 {[%clk 0:00:10]}  Na4 {[%clk 0:00:05]} 37. Rc8 {[%clk 0:00:09]}  Ra1 {[%clk 0:00:05]} 38. Kf2 {[%clk 0:00:06]}  Nb6 {[%clk 0:00:05]} 39. Rb8 {[%clk 0:00:06]}  Nd7 {[%clk 0:00:03]} 40. Rb7 {[%clk 0:00:06]}  Ke7 {[%clk 0:00:03]} 41. Nc6+ {[%clk 0:00:06]}  Kf8 {[%clk 0:00:04]} 42. Rxd7 {[%clk 0:00:06]}  Rc1 {[%clk 0:00:03]} 43. Nd8 {[%clk 0:00:06]}  Rd1 {[%clk 0:00:03]} 44. Rxf7+ {[%clk 0:00:06]}  Kg8 {[%clk 0:00:03]} 45. Re7 {[%clk 0:00:06]}  Ng7 {[%clk 0:00:03]} 46. Nxe6 {[%clk 0:00:06]}  Nf5 {[%clk 0:00:03]} 47. Rd7 {[%clk 0:00:05]}  Rd2+ {[%clk 0:00:02]} 48. Be2 {[%clk 0:00:05]}  g4 {[%clk 0:00:00]} 49. hxg4 {[%clk 0:00:05]} 1-0


[Site "https://www.chess.com"]

[Event "Titled Tuesday Blitz May 9 Late 2023"]
[White "Mikhalsky, Vladimir"]
[Black "Ward, Ieuan C"]
[WhiteFideId "14144352"]
[BlackFideId "406627"]
[WhiteElo "2236"]
[BlackElo "2306"]
[Result "1/2-1/2"]
[Round "04"]
[TimeControl "180+2"]
[Date "2023.05.09"]
[WhiteClock "0:00:31"]
[BlackClock "0:00:50"]

1. d4 {[%clk 0:03:00]}  Nf6 {[%clk 0:02:59]} 2. c4 {[%clk 0:03:00]}  e6 {[%clk 0:02:59]} 3. g3 {[%clk 0:03:00]}  d5 {[%clk 0:02:58]} 4. Bg2 {[%clk 0:02:59]}  Be7 {[%clk 0:02:56]} 5. Nf3 {[%clk 0:02:59]}  O-O {[%clk 0:02:56]} 6. O-O {[%clk 0:03:00]}  dxc4 {[%clk 0:02:57]} 7. Ne5 {[%clk 0:02:56]}  Nc6 {[%clk 0:02:56]} 8. Nxc6 {[%clk 0:02:46]}  bxc6 {[%clk 0:02:57]} 9. a4 {[%clk 0:02:30]}  Rb8 {[%clk 0:02:49]} 10. Na3 {[%clk 0:02:30]}  c5 {[%clk 0:02:45]} 11. dxc5 {[%clk 0:02:25]}  Bxc5 {[%clk 0:02:41]} 12. Nxc4 {[%clk 0:02:24]}  Ba6 {[%clk 0:02:34]} 13. Qc2 {[%clk 0:02:02]}  Qd4 {[%clk 0:02:20]} 14. Be3 {[%clk 0:01:55]}  Qxc4 {[%clk 0:02:17]} 15. Qxc4 {[%clk 0:01:55]}  Bxc4 {[%clk 0:02:17]} 16. Bxc5 {[%clk 0:01:55]}  Rfd8 {[%clk 0:02:16]} 17. Bxa7 {[%clk 0:01:55]}  Rxb2 {[%clk 0:02:13]} 18. Rfc1 {[%clk 0:01:53]}  Bd5 {[%clk 0:02:07]} 19. Bd4 {[%clk 0:01:50]}  Rxe2 {[%clk 0:02:03]} 20. Bxf6 {[%clk 0:01:49]}  gxf6 {[%clk 0:02:02]} 21. Bf1 {[%clk 0:01:24]}  Ra2 {[%clk 0:01:49]} 22. Rxa2 {[%clk 0:01:01]}  Bxa2 {[%clk 0:01:50]} 23. a5 {[%clk 0:00:59]}  Ra8 {[%clk 0:01:43]} 24. a6 {[%clk 0:00:57]}  Ra7 {[%clk 0:01:39]} 25. Rc2 {[%clk 0:00:46]}  Bd5 {[%clk 0:01:37]} 26. Rb2 {[%clk 0:00:46]}  c5 {[%clk 0:01:27]} 27. Rb8+ {[%clk 0:00:41]}  Kg7 {[%clk 0:01:27]} 28. Rc8 {[%clk 0:00:38]}  c4 {[%clk 0:01:23]} 29. Bxc4 {[%clk 0:00:37]}  Bxc4 {[%clk 0:01:23]} 30. Rxc4 {[%clk 0:00:37]}  Rxa6 {[%clk 0:01:23]} 31. Rg4+ {[%clk 0:00:37]}  Kh6 {[%clk 0:01:22]} 32. Kg2 {[%clk 0:00:37]}  Ra5 {[%clk 0:01:21]} 33. Rg8 {[%clk 0:00:37]}  Rg5 {[%clk 0:01:20]} 34. Rf8 {[%clk 0:00:37]}  Kg7 {[%clk 0:01:20]} 35. Re8 {[%clk 0:00:37]}  Rd5 {[%clk 0:01:19]} 36. h4 {[%clk 0:00:36]}  h5 {[%clk 0:01:18]} 37. Kf3 {[%clk 0:00:35]}  Rd4 {[%clk 0:01:17]} 38. Rc8 {[%clk 0:00:35]}  Rd5 {[%clk 0:01:17]} 39. Rb8 {[%clk 0:00:35]}  Rf5+ {[%clk 0:01:17]} 40. Kg2 {[%clk 0:00:35]}  Rd5 {[%clk 0:01:16]} 41. Rc8 {[%clk 0:00:35]}  e5 {[%clk 0:01:13]} 42. Rb8 {[%clk 0:00:35]}  Rd2 {[%clk 0:01:12]} 43. Kf3 {[%clk 0:00:33]}  f5 {[%clk 0:01:10]} 44. Rb6 {[%clk 0:00:33]}  e4+ {[%clk 0:01:08]} 45. Ke3 {[%clk 0:00:33]}  Rd3+ {[%clk 0:01:08]} 46. Ke2 {[%clk 0:00:31]}  Ra3 {[%clk 0:01:04]} 47. Rc6 {[%clk 0:00:31]}  f6 {[%clk 0:00:53]} 48. Rc8 {[%clk 0:00:30]}  Kg6 {[%clk 0:00:53]} 49. Rg8+ {[%clk 0:00:30]}  Kf7 {[%clk 0:00:52]} 50. Rh8 {[%clk 0:00:30]}  Kg6 {[%clk 0:00:52]} 51. Rg8+ {[%clk 0:00:30]}  Kh7 {[%clk 0:00:52]} 52. Rf8 {[%clk 0:00:31]}  Kg7 {[%clk 0:00:52]} 53. Rc8 {[%clk 0:00:31]}  Ra2+ {[%clk 0:00:51]} 54. Ke3 {[%clk 0:00:31]}  Ra3+ {[%clk 0:00:50]} 55. Ke2 {[%clk 0:00:31]} 1/2-1/2


[Site "https://www.chess.com"]

[Event "Titled Tuesday Blitz May 9 Late 2023"]
[White "Georg, Heinz"]
[Black "Martin Barcelo, Carles"]
[WhiteFideId "4607295"]
[BlackFideId "24561444"]
[WhiteElo "2299"]
[BlackElo "2089"]
[Result "1-0"]
[Round "04"]
[TimeControl "180+2"]
[Date "2023.05.09"]
[WhiteClock "0:00:26"]
[BlackClock "0:00:07"]

1. c4 {[%clk 0:03:00]}  b6 {[%clk 0:02:54]} 2. Nc3 {[%clk 0:02:59]}  Bb7 {[%clk 0:02:54]} 3. e4 {[%clk 0:02:54]}  e5 {[%clk 0:02:53]} 4. g3 {[%clk 0:02:52]}  g6 {[%clk 0:02:47]} 5. Bg2 {[%clk 0:02:52]}  Bg7 {[%clk 0:02:47]} 6. Nge2 {[%clk 0:02:53]}  Nc6 {[%clk 0:02:47]} 7. O-O {[%clk 0:02:53]}  Nge7 {[%clk 0:02:47]} 8. d3 {[%clk 0:02:54]}  O-O {[%clk 0:02:47]} 9. f4 {[%clk 0:02:55]}  Nd4 {[%clk 0:02:47]} 10. Nxd4 {[%clk 0:02:53]}  exd4 {[%clk 0:02:48]} 11. Ne2 {[%clk 0:02:54]}  d6 {[%clk 0:02:42]} 12. f5 {[%clk 0:02:51]}  Nc6 {[%clk 0:02:36]} 13. g4 {[%clk 0:02:40]}  Be5 {[%clk 0:02:33]} 14. g5 {[%clk 0:02:18]}  Kh8 {[%clk 0:01:31]} 15. f6 {[%clk 0:02:17]}  Bc8 {[%clk 0:01:27]} 16. Bf4 {[%clk 0:02:01]}  Bg4 {[%clk 0:01:26]} 17. Qe1 {[%clk 0:02:00]}  Bxe2 {[%clk 0:01:25]} 18. Qxe2 {[%clk 0:02:01]}  Bxf4 {[%clk 0:01:25]} 19. Rxf4 {[%clk 0:02:01]}  Ne5 {[%clk 0:01:25]} 20. Rd1 {[%clk 0:01:56]}  Re8 {[%clk 0:01:13]} 21. Qf2 {[%clk 0:01:50]}  Nd7 {[%clk 0:01:01]} 22. Qh4 {[%clk 0:01:43]}  h5 {[%clk 0:00:49]} 23. Bf3 {[%clk 0:01:32]}  Kh7 {[%clk 0:00:44]} 24. Bxh5 {[%clk 0:01:32]}  Rh8 {[%clk 0:00:44]} 25. Bxg6+ {[%clk 0:01:01]}  Kg8 {[%clk 0:00:25]} 26. Bxf7+ {[%clk 0:00:52]}  Kxf7 {[%clk 0:00:20]} 27. g6+ {[%clk 0:00:47]}  Kg8 {[%clk 0:00:08]} 28. Qg4 {[%clk 0:00:26]}  Ne5 {[%clk 0:00:08]} 29. Qe6+ {[%clk 0:00:26]}  Kf8 {[%clk 0:00:07]} 30. g7# {[%clk 0:00:26]} 1-0


[Site "https://www.chess.com"]

[Event "Titled Tuesday Blitz May 9 Late 2023"]
[White "marik_spb"]
[Black "Svicevic, Rastko"]
[BlackFideId "916315"]
[WhiteElo "2446"]
[BlackElo "2115"]
[Result "1-0"]
[Round "04"]
[TimeControl "180+2"]
[Date "2023.05.09"]
[WhiteClock "0:00:06"]
[BlackClock "0:00:00"]

1. d4 {[%clk 0:02:48]}  d5 {[%clk 0:02:59]} 2. c4 {[%clk 0:02:48]}  e6 {[%clk 0:02:59]} 3. Nf3 {[%clk 0:02:49]}  c6 {[%clk 0:02:59]} 4. g3 {[%clk 0:02:49]}  f5 {[%clk 0:02:59]} 5. Bg2 {[%clk 0:02:49]}  Nf6 {[%clk 0:03:00]} 6. Bf4 {[%clk 0:02:48]}  Be7 {[%clk 0:02:56]} 7. Nbd2 {[%clk 0:02:48]}  Nbd7 {[%clk 0:02:56]} 8. O-O {[%clk 0:02:47]}  O-O {[%clk 0:02:56]} 9. Ne5 {[%clk 0:02:47]}  Ne4 {[%clk 0:02:53]} 10. Rc1 {[%clk 0:02:44]}  g5 {[%clk 0:02:52]} 11. Nxd7 {[%clk 0:02:41]}  Bxd7 {[%clk 0:02:50]} 12. Be5 {[%clk 0:02:42]}  Bf6 {[%clk 0:02:46]} 13. Nf3 {[%clk 0:02:37]}  Be8 {[%clk 0:02:32]} 14. Bxf6 {[%clk 0:02:36]}  Nxf6 {[%clk 0:02:33]} 15. Ne5 {[%clk 0:02:36]}  Nd7 {[%clk 0:02:30]} 16. Nd3 {[%clk 0:02:20]}  Bg6 {[%clk 0:02:08]} 17. f4 {[%clk 0:02:14]}  dxc4 {[%clk 0:01:59]} 18. Rxc4 {[%clk 0:02:14]}  Nb6 {[%clk 0:01:59]} 19. Qb3 {[%clk 0:01:59]}  gxf4 {[%clk 0:01:39]} 20. Rxf4 {[%clk 0:01:40]}  Nxc4 {[%clk 0:01:39]} 21. Qxc4 {[%clk 0:01:41]}  Qd6 {[%clk 0:01:31]} 22. Ne5 {[%clk 0:01:34]}  Rad8 {[%clk 0:01:29]} 23. e3 {[%clk 0:01:34]}  Rf6 {[%clk 0:01:02]} 24. g4 {[%clk 0:01:12]}  a5 {[%clk 0:00:59]} 25. h4 {[%clk 0:01:10]}  Qb4 {[%clk 0:00:57]} 26. Qe2 {[%clk 0:00:39]}  Be8 {[%clk 0:00:12]} 27. g5 {[%clk 0:00:27]}  Rf8 {[%clk 0:00:12]} 28. h5 {[%clk 0:00:26]}  Qe7 {[%clk 0:00:12]} 29. Qc4 {[%clk 0:00:19]}  Rd6 {[%clk 0:00:08]} 30. g6 {[%clk 0:00:16]}  hxg6 {[%clk 0:00:07]} 31. hxg6 {[%clk 0:00:16]}  Rf6 {[%clk 0:00:06]} 32. Kf2 {[%clk 0:00:13]}  Bxg6 {[%clk 0:00:06]} 33. Bf3 {[%clk 0:00:13]}  Qh7 {[%clk 0:00:05]} 34. Bg2 {[%clk 0:00:07]}  Qh2 {[%clk 0:00:00]} 35. Qc5 {[%clk 0:00:06]} 1-0


[Site "https://www.chess.com"]

[Event "Titled Tuesday Blitz May 9 Late 2023"]
[White "Golubev, Mikhail"]
[Black "Abdi, Farzad"]
[WhiteFideId "14100983"]
[BlackFideId "2076829"]
[WhiteElo "2374"]
[BlackElo "2251"]
[Result "0-1"]
[Round "04"]
[TimeControl "180+2"]
[Date "2023.05.09"]
[WhiteClock "0:00:24"]
[BlackClock "0:01:27"]

1. e4 {[%clk 0:02:51]}  c5 {[%clk 0:02:55]} 2. Nf3 {[%clk 0:02:50]}  d6 {[%clk 0:02:55]} 3. d4 {[%clk 0:02:51]}  cxd4 {[%clk 0:02:55]} 4. Nxd4 {[%clk 0:02:52]}  Nf6 {[%clk 0:02:55]} 5. Nc3 {[%clk 0:02:52]}  g6 {[%clk 0:02:56]} 6. Be3 {[%clk 0:02:50]}  Bg7 {[%clk 0:02:56]} 7. f3 {[%clk 0:02:50]}  O-O {[%clk 0:02:57]} 8. Qd2 {[%clk 0:02:50]}  Nc6 {[%clk 0:02:58]} 9. g4 {[%clk 0:02:50]}  Nxd4 {[%clk 0:02:54]} 10. Bxd4 {[%clk 0:02:49]}  Be6 {[%clk 0:02:53]} 11. h4 {[%clk 0:02:48]}  Qa5 {[%clk 0:02:50]} 12. h5 {[%clk 0:02:47]}  Rfc8 {[%clk 0:02:47]} 13. a3 {[%clk 0:02:36]}  a6 {[%clk 0:02:40]} 14. O-O-O {[%clk 0:02:23]}  b5 {[%clk 0:02:30]} 15. hxg6 {[%clk 0:02:16]}  fxg6 {[%clk 0:02:25]} 16. Bxf6 {[%clk 0:02:04]}  Bxf6 {[%clk 0:02:12]} 17. Ne2 {[%clk 0:00:45]}  Qa4 {[%clk 0:01:38]} 18. Rh2 {[%clk 0:00:27]}  b4 {[%clk 0:01:32]} 19. Qxb4 {[%clk 0:00:24]}  Qxc2# {[%clk 0:01:27]} 0-1


[Site "https://www.chess.com"]

[Event "Titled Tuesday Blitz May 9 Late 2023"]
[White "D`Arruda, Ricardo D."]
[Black "Almedina Ortiz, Edgardo J."]
[WhiteFideId "100692"]
[BlackFideId "3100197"]
[WhiteElo "2427"]
[BlackElo "2217"]
[Result "1-0"]
[Round "04"]
[TimeControl "180+2"]
[Date "2023.05.09"]
[WhiteClock "0:00:12"]
[BlackClock "0:00:00"]

1. d4 {[%clk 0:02:49]}  d5 {[%clk 0:02:59]} 2. Nf3 {[%clk 0:02:48]}  Nf6 {[%clk 0:02:58]} 3. c4 {[%clk 0:02:47]}  e6 {[%clk 0:02:58]} 4. Nc3 {[%clk 0:02:47]}  c5 {[%clk 0:02:56]} 5. cxd5 {[%clk 0:02:46]}  Nxd5 {[%clk 0:02:56]} 6. e4 {[%clk 0:02:46]}  Nxc3 {[%clk 0:02:56]} 7. bxc3 {[%clk 0:02:46]}  cxd4 {[%clk 0:02:56]} 8. cxd4 {[%clk 0:02:47]}  Bb4+ {[%clk 0:02:56]} 9. Bd2 {[%clk 0:02:48]}  Bxd2+ {[%clk 0:02:57]} 10. Qxd2 {[%clk 0:02:49]}  O-O {[%clk 0:02:57]} 11. Bc4 {[%clk 0:02:48]}  Nd7 {[%clk 0:02:57]} 12. O-O {[%clk 0:02:48]}  b6 {[%clk 0:02:58]} 13. Qe3 {[%clk 0:02:47]}  Bb7 {[%clk 0:02:57]} 14. Rfd1 {[%clk 0:02:43]}  Rc8 {[%clk 0:02:56]} 15. Rac1 {[%clk 0:02:42]}  Nf6 {[%clk 0:02:52]} 16. Nd2 {[%clk 0:02:40]}  Qe7 {[%clk 0:02:18]} 17. f3 {[%clk 0:02:34]}  Rfd8 {[%clk 0:02:16]} 18. Bb3 {[%clk 0:02:27]}  b5 {[%clk 0:02:12]} 19. Nf1 {[%clk 0:01:54]}  a5 {[%clk 0:02:06]} 20. Rxc8 {[%clk 0:01:48]}  Rxc8 {[%clk 0:02:04]} 21. Rc1 {[%clk 0:01:49]}  a4 {[%clk 0:01:46]} 22. Bd1 {[%clk 0:01:48]}  Qd8 {[%clk 0:01:37]} 23. Rxc8 {[%clk 0:01:44]}  Qxc8 {[%clk 0:01:36]} 24. a3 {[%clk 0:01:43]}  Bc6 {[%clk 0:01:23]} 25. Qc3 {[%clk 0:01:37]}  Bd7 {[%clk 0:01:21]} 26. Qxc8+ {[%clk 0:01:35]}  Bxc8 {[%clk 0:01:22]} 27. Ne3 {[%clk 0:01:34]}  Kf8 {[%clk 0:01:19]} 28. Nc2 {[%clk 0:01:33]}  Ke7 {[%clk 0:01:17]} 29. Kf2 {[%clk 0:01:31]}  Ne8 {[%clk 0:01:14]} 30. Be2 {[%clk 0:01:29]}  Bd7 {[%clk 0:01:11]} 31. Ke3 {[%clk 0:01:29]}  Kd6 {[%clk 0:01:11]} 32. Nb4 {[%clk 0:01:27]}  Nc7 {[%clk 0:01:09]} 33. f4 {[%clk 0:01:25]}  f6 {[%clk 0:01:06]} 34. e5+ {[%clk 0:01:24]}  fxe5 {[%clk 0:01:05]} 35. fxe5+ {[%clk 0:01:24]}  Ke7 {[%clk 0:01:03]} 36. Bf3 {[%clk 0:01:21]}  h6 {[%clk 0:01:02]} 37. h4 {[%clk 0:01:20]}  Be8 {[%clk 0:01:00]} 38. Be4 {[%clk 0:00:56]}  Bh5 {[%clk 0:00:58]} 39. g3 {[%clk 0:00:56]}  Bd1 {[%clk 0:00:55]} 40. Bc6 {[%clk 0:00:55]}  Bb3 {[%clk 0:00:52]} 41. Be4 {[%clk 0:00:49]}  Bc4 {[%clk 0:00:51]} 42. Nc6+ {[%clk 0:00:49]}  Kd7 {[%clk 0:00:50]} 43. Nb4 {[%clk 0:00:47]}  Ke7 {[%clk 0:00:49]} 44. Kd2 {[%clk 0:00:47]}  Kd7 {[%clk 0:00:46]} 45. Kc3 {[%clk 0:00:47]}  Ke7 {[%clk 0:00:41]} 46. Nc6+ {[%clk 0:00:40]}  Kd7 {[%clk 0:00:41]} 47. Kb4 {[%clk 0:00:39]}  Nd5+ {[%clk 0:00:34]} 48. Bxd5 {[%clk 0:00:37]}  Bxd5 {[%clk 0:00:31]} 49. Na7 {[%clk 0:00:36]}  Bb3 {[%clk 0:00:30]} 50. Nxb5 {[%clk 0:00:36]}  Kc6 {[%clk 0:00:28]} 51. Nc3 {[%clk 0:00:36]}  Bc2 {[%clk 0:00:26]} 52. Kc4 {[%clk 0:00:27]}  Bb3+ {[%clk 0:00:25]} 53. Kb4 {[%clk 0:00:27]}  Bc2 {[%clk 0:00:25]} 54. Nxa4 {[%clk 0:00:28]}  Kd5 {[%clk 0:00:25]} 55. Nc5 {[%clk 0:00:25]}  Kxd4 {[%clk 0:00:25]} 56. a4 {[%clk 0:00:25]}  Kxe5 {[%clk 0:00:20]} 57. a5 {[%clk 0:00:25]}  Bd1 {[%clk 0:00:20]} 58. a6 {[%clk 0:00:21]}  Bf3 {[%clk 0:00:20]} 59. a7 {[%clk 0:00:17]}  Kf5 {[%clk 0:00:19]} 60. Kc4 {[%clk 0:00:17]}  e5 {[%clk 0:00:17]} 61. Kd3 {[%clk 0:00:17]}  Ba8 {[%clk 0:00:16]} 62. Ke3 {[%clk 0:00:17]}  Kg4 {[%clk 0:00:16]} 63. Kf2 {[%clk 0:00:17]}  e4 {[%clk 0:00:17]} 64. Ne6 {[%clk 0:00:11]}  e3+ {[%clk 0:00:16]} 65. Kxe3 {[%clk 0:00:12]}  Kxg3 {[%clk 0:00:16]} 66. h5 {[%clk 0:00:12]}  Kh4 {[%clk 0:00:16]} 67. Nxg7 {[%clk 0:00:13]}  Kg5 {[%clk 0:00:16]} 68. Kd4 {[%clk 0:00:13]}  Kf6 {[%clk 0:00:13]} 69. Ne8+ {[%clk 0:00:14]}  Kg5 {[%clk 0:00:13]} 70. Nc7 {[%clk 0:00:14]}  Bb7 {[%clk 0:00:13]} 71. Kc5 {[%clk 0:00:13]}  Kxh5 {[%clk 0:00:12]} 72. Kb6 {[%clk 0:00:14]}  Be4 {[%clk 0:00:10]} 73. Ne6 {[%clk 0:00:11]}  Ba8 {[%clk 0:00:09]} 74. Kc7 {[%clk 0:00:10]}  Kg4 {[%clk 0:00:09]} 75. Kb8 {[%clk 0:00:11]}  Bf3 {[%clk 0:00:07]} 76. Nd8 {[%clk 0:00:11]}  h5 {[%clk 0:00:00]} 77. Nb7 {[%clk 0:00:12]} 1-0


[Site "https://www.chess.com"]

[Event "Titled Tuesday Blitz May 9 Late 2023"]
[White "Colpe, Malte"]
[Black "Burke, Paul"]
[WhiteFideId "24623075"]
[BlackFideId "2605767"]
[WhiteElo "2289"]
[BlackElo "1915"]
[Result "1-0"]
[Round "04"]
[TimeControl "180+2"]
[Date "2023.05.09"]
[WhiteClock "0:00:34"]
[BlackClock "0:00:21"]

1. d4 {[%clk 0:01:53]}  a6 {[%clk 0:02:57]} 2. g3 {[%clk 0:01:50]}  d6 {[%clk 0:02:57]} 3. Bg2 {[%clk 0:01:50]}  Nd7 {[%clk 0:02:57]} 4. e4 {[%clk 0:01:51]}  g6 {[%clk 0:02:57]} 5. Ne2 {[%clk 0:01:52]}  Bg7 {[%clk 0:02:57]} 6. Nbc3 {[%clk 0:01:52]}  h6 {[%clk 0:02:57]} 7. Be3 {[%clk 0:01:53]}  e5 {[%clk 0:02:57]} 8. Qd2 {[%clk 0:01:54]}  Ne7 {[%clk 0:02:56]} 9. a4 {[%clk 0:01:54]}  f5 {[%clk 0:02:56]} 10. dxe5 {[%clk 0:01:53]}  dxe5 {[%clk 0:02:54]} 11. O-O {[%clk 0:01:52]}  g5 {[%clk 0:02:49]} 12. exf5 {[%clk 0:01:50]}  Nxf5 {[%clk 0:02:49]} 13. Qd3 {[%clk 0:01:45]}  O-O {[%clk 0:02:41]} 14. Rad1 {[%clk 0:01:41]}  Nxe3 {[%clk 0:02:32]} 15. Qxe3 {[%clk 0:01:40]}  c6 {[%clk 0:02:27]} 16. Ne4 {[%clk 0:01:38]}  Qe7 {[%clk 0:02:20]} 17. Nd6 {[%clk 0:01:30]}  Nf6 {[%clk 0:02:19]} 18. Nc3 {[%clk 0:01:27]}  Ng4 {[%clk 0:02:01]} 19. Qe4 {[%clk 0:01:25]}  Nf6 {[%clk 0:01:49]} 20. Qg6 {[%clk 0:01:22]}  Be6 {[%clk 0:01:35]} 21. Nce4 {[%clk 0:01:16]}  Nxe4 {[%clk 0:01:27]} 22. Bxe4 {[%clk 0:01:14]}  Rf6 {[%clk 0:01:21]} 23. Qh7+ {[%clk 0:01:04]}  Kf8 {[%clk 0:01:20]} 24. Nf5 {[%clk 0:01:02]}  Bxf5 {[%clk 0:01:16]} 25. Bxf5 {[%clk 0:01:02]}  Rd8 {[%clk 0:01:06]} 26. Bg4 {[%clk 0:00:55]}  Rd5 {[%clk 0:00:53]} 27. c4 {[%clk 0:00:48]}  Rd4 {[%clk 0:00:51]} 28. Rfe1 {[%clk 0:00:46]}  Rxg4 {[%clk 0:00:48]} 29. b3 {[%clk 0:00:35]}  Rd6 {[%clk 0:00:38]} 30. Qf5+ {[%clk 0:00:33]}  Bf6 {[%clk 0:00:34]} 31. Qxg4 {[%clk 0:00:34]}  Rxd1 {[%clk 0:00:21]} 32. Rxd1 {[%clk 0:00:34]} 1-0


[Site "https://www.chess.com"]

[Event "Titled Tuesday Blitz May 9 Late 2023"]
[White "Gasparyan, David"]
[Black "Silva Rosas, Natalia"]
[WhiteFideId "13311980"]
[BlackFideId "3000575"]
[WhiteElo "2402"]
[BlackElo "1651"]
[Result "1-0"]
[Round "04"]
[TimeControl "180+2"]
[Date "2023.05.09"]
[WhiteClock "0:00:23"]
[BlackClock "0:00:15"]

1. d4 {[%clk 0:03:00]}  g6 {[%clk 0:02:59]} 2. e4 {[%clk 0:02:57]}  Bg7 {[%clk 0:03:00]} 3. Nc3 {[%clk 0:02:56]}  d6 {[%clk 0:02:59]} 4. Nf3 {[%clk 0:02:56]}  e6 {[%clk 0:02:54]} 5. h4 {[%clk 0:02:55]}  h5 {[%clk 0:02:54]} 6. Bg5 {[%clk 0:02:50]}  f6 {[%clk 0:02:50]} 7. Be3 {[%clk 0:02:50]}  Qe7 {[%clk 0:02:48]} 8. e5 {[%clk 0:02:45]}  dxe5 {[%clk 0:02:27]} 9. dxe5 {[%clk 0:02:38]}  f5 {[%clk 0:02:04]} 10. Bg5 {[%clk 0:02:29]}  Qd7 {[%clk 0:01:51]} 11. Qd3 {[%clk 0:02:08]}  Qxd3 {[%clk 0:01:48]} 12. Bxd3 {[%clk 0:01:51]}  Ne7 {[%clk 0:01:43]} 13. Nb5 {[%clk 0:01:44]}  Na6 {[%clk 0:01:38]} 14. a3 {[%clk 0:01:39]}  Bd7 {[%clk 0:01:32]} 15. O-O-O {[%clk 0:01:37]}  Bh6 {[%clk 0:01:24]} 16. Bc4 {[%clk 0:01:28]}  Bxg5+ {[%clk 0:01:23]} 17. Nxg5 {[%clk 0:01:28]}  Nd5 {[%clk 0:00:58]} 18. Nxe6 {[%clk 0:01:06]}  Bxe6 {[%clk 0:00:57]} 19. Bxd5 {[%clk 0:01:07]}  Bxd5 {[%clk 0:00:57]} 20. Rxd5 {[%clk 0:01:07]}  c6 {[%clk 0:00:58]} 21. Nd6+ {[%clk 0:01:08]}  Ke7 {[%clk 0:00:53]} 22. Rd3 {[%clk 0:01:08]}  Nc5 {[%clk 0:00:50]} 23. Rg3 {[%clk 0:01:06]}  Rhg8 {[%clk 0:00:45]} 24. Rd1 {[%clk 0:00:54]}  b6 {[%clk 0:00:38]} 25. Rc3 {[%clk 0:00:40]}  Ke6 {[%clk 0:00:31]} 26. f4 {[%clk 0:00:26]}  Rgd8 {[%clk 0:00:22]} 27. b4 {[%clk 0:00:26]}  Ne4 {[%clk 0:00:19]} 28. Nxe4 {[%clk 0:00:26]}  Rxd1+ {[%clk 0:00:18]} 29. Kxd1 {[%clk 0:00:27]}  fxe4 {[%clk 0:00:18]} 30. Rxc6+ {[%clk 0:00:27]}  Kf5 {[%clk 0:00:19]} 31. g3 {[%clk 0:00:25]}  Kg4 {[%clk 0:00:20]} 32. Rxg6+ {[%clk 0:00:24]}  Kf3 {[%clk 0:00:21]} 33. e6 {[%clk 0:00:20]}  Rd8+ {[%clk 0:00:20]} 34. Ke1 {[%clk 0:00:20]}  e3 {[%clk 0:00:20]} 35. e7 {[%clk 0:00:21]}  Re8 {[%clk 0:00:20]} 36. Re6 {[%clk 0:00:21]}  Kxg3 {[%clk 0:00:18]} 37. f5 {[%clk 0:00:21]}  Kxh4 {[%clk 0:00:18]} 38. f6 {[%clk 0:00:21]}  e2 {[%clk 0:00:17]} 39. f7 {[%clk 0:00:21]}  Rxe7 {[%clk 0:00:16]} 40. Rxe7 {[%clk 0:00:22]}  Kh3 {[%clk 0:00:16]} 41. f8=Q {[%clk 0:00:22]}  h4 {[%clk 0:00:17]} 42. Rh7 {[%clk 0:00:22]}  a5 {[%clk 0:00:16]} 43. Qh6 {[%clk 0:00:22]}  axb4 {[%clk 0:00:15]} 44. Qxh4+ {[%clk 0:00:23]}  Kg2 {[%clk 0:00:15]} 45. Qf2# {[%clk 0:00:23]} 1-0


[Site "https://www.chess.com"]

[Event "Titled Tuesday Blitz May 9 Late 2023"]
[White "Kujawski, Adam"]
[Black "awayceiling"]
[WhiteFideId "1100920"]
[WhiteElo "2054"]
[BlackElo "1314"]
[Result "1-0"]
[Round "04"]
[TimeControl "180+2"]
[Date "2023.05.09"]
[WhiteClock "0:02:10"]
[BlackClock "0:02:12"]

1. e4 {[%clk 0:02:55]}  c5 {[%clk 0:02:59]} 2. Nf3 {[%clk 0:02:54]}  e6 {[%clk 0:02:59]} 3. d4 {[%clk 0:02:54]}  cxd4 {[%clk 0:03:00]} 4. Nxd4 {[%clk 0:02:54]}  a6 {[%clk 0:03:00]} 5. c4 {[%clk 0:02:54]}  Nf6 {[%clk 0:02:58]} 6. Nc3 {[%clk 0:02:54]}  Qc7 {[%clk 0:02:55]} 7. Bd3 {[%clk 0:02:54]}  Be7 {[%clk 0:02:55]} 8. O-O {[%clk 0:02:53]}  O-O {[%clk 0:02:55]} 9. Kh1 {[%clk 0:02:53]}  Nc6 {[%clk 0:02:55]} 10. Nc2 {[%clk 0:02:52]}  b6 {[%clk 0:02:53]} 11. f4 {[%clk 0:02:49]}  d6 {[%clk 0:02:54]} 12. b3 {[%clk 0:02:46]}  Bb7 {[%clk 0:02:53]} 13. Bb2 {[%clk 0:02:45]}  Rac8 {[%clk 0:02:49]} 14. Ne3 {[%clk 0:02:45]}  Nb4 {[%clk 0:02:43]} 15. Bb1 {[%clk 0:02:42]}  Nc6 {[%clk 0:02:30]} 16. Qd2 {[%clk 0:02:38]}  b5 {[%clk 0:02:14]} 17. cxb5 {[%clk 0:02:31]}  axb5 {[%clk 0:02:13]} 18. Nxb5 {[%clk 0:02:28]}  Qd8 {[%clk 0:02:14]} 19. Bd3 {[%clk 0:02:10]}  Nb4 {[%clk 0:02:12]} 1-0


[Site "https://www.chess.com"]